[Event "Doeberl Cup 2022"]
[Site "Canberra"]
[Date "2022.04.16"]
[Round "5.4"]
[White "Stojic, Dusan"]
[Black "Johansen, Darryl K"]
[Result "1-0"]
[ECO "B85"]
[WhiteElo "2240"]
[BlackElo "2385"]
[Annotator "TA"]
[PlyCount "71"]
[EventDate "2022.04.14"]
[EventType "swiss"]
[EventCountry "AUS"]
[SourceTitle "playchess.com"]
[Source "ChessBase"]
[SourceQuality "1"]
[TimeControl "5400+30"]

{[%evp 31,71,12,77,0,46,12,33,-66,-42,-43,-40,-47,42,50,57,0,440,437,656,627,586,377,422,126,114,-310,193,185,199,200,266,247,258,218,226,211,230,231,680,193,29991,1602]} 1. e4 {[%emt 0:05:06]} c5 {[%emt 0:00:21]} 2. Nf3 {[%emt 0:00:28]} e6 {[%emt 0:00:19]} 3. d4 {[%emt 0:00:19]} cxd4 {[%emt 0:00:08]} 4. Nxd4 {[%emt 0:00:09]} Nc6 {[%emt 0:00:18]} 5. Nc3 {[%emt 0:00:21]} Qc7 {[%emt 0:01:54]} 6. Be2 {[%emt 0:04:48]} a6 {[%emt 0:02:29]} 7. O-O {[%emt 0:00:39]} Nf6 {[%emt 0:00:30]} 8. Be3 {[%emt 0:00:30]} d6 {[%emt 0:11:29]} 9. f4 {[%emt 0:00:53]} Be7 {[%emt 0:00:40]} 10. Qe1 {[%emt 0:04:39]} O-O {[%emt 0:14:13]} 11. Qg3 {[%emt 0:01:35]} Bd7 {[%emt 0:00:30]} 12. Rae1 {[%emt 0:06:00]} b5 {[%emt 0:09:03]} 13. a3 {[%emt 0:15:29]} Nxd4 {[%emt 0:09:08]} 14. Bxd4 {[%emt 0:00:07]} Bc6 {[%emt 0:00:09]} 15. Bd3 {[%emt 0:01:23]} Rad8 {[%emt 0:05:41]} 16. Kh1 {[%emt 0:07:01]} Qb7 {[%emt 0:09:12] [#]} (16... Qd7 $11 {remains equal.}) 17. b4 {[%emt 0:05:12] B85: Sicilian Scheveningen: 6 Be2 a6, lines with early Be3.} ({Better is} 17. Qh3 $1 $16) 17... g6 {[%emt 0:07:50]} (17... Rfe8 $11) 18. Qh3 {[%emt 0:15:04] [#]} Nh5 $146 {[%emt 0:06:18]} ({Predecessor:} 18... d5 19. e5 Ne4 20. Nd1 Kg7 21. Ne3 f5 22. exf6+ Bxf6 23. Bxf6+ Rxf6 24. Ng4 Rf5 25. Bxe4 dxe4 {1-0 (46) Lopez Pereyra,A (2159)-Perez Candelario,M (2504) Campillos 2004}) 19. Re3 {[%emt 0:04:32]} (19. f5 $14 e5 20. Be3) 19... f5 {[%emt 0:10:04]} (19... e5 $5 20. fxe5 dxe5 21. Bxe5 Bg5 $15) 20. exf5 {[%emt 0:09:30]} exf5 {[%emt 0:00:05]} 21. Ne2 {[%emt 0:00:31]} Nf6 {[%emt 0:06:07]} (21... Rde8 $15) 22. Ng3 $1 $14 {[%emt 0:04:01][%cal Od3f5] aiming for Bxf5!} Ng4 {[%emt 0:01:39] ...Bf6 is the strong threat.} 23. Nxf5 $40 {[%emt 0:05:09][%mdl 128] White has some attack.} (23. Re2 $1 $14) 23... Rxf5 $4 {[%emt 0:02:08][%mdl 8192]} (23... gxf5 $11 24. Rg3 Be4) 24. Qxg4 $18 {[%emt 0:00:54]} Rf7 {[%emt 0:01:25]} (24... Bf6 $142) 25. Re6 {[%emt 0:03:04][%cal Od3g6] Intending Bxg6! and mate.} Bf8 {[%emt 0:00:34]} 26. Bf6 {[%emt 0:03:44]} Re8 {[%emt 0:00:29] [#] And now ...Rxe6 would win.} 27. Rxe8 {[%emt 0:02:18]} (27. f5 $1 $18 {[%cal Rf5g6] is the precise move to win.} Rxe6 28. fxe6 Rxf6 29. Rxf6) 27... Bxe8 $16 {[%emt 0:00:03]} 28. Bxg6 $2 {[%emt 0:00:26][%mdl 8192] &Bianco is much more active.} Rxf6 {[%emt 0:00:07][%mdl 8192]} (28... hxg6 $19 {and life is good for Black.} 29. Qh4 (29. Qxg6+ $2 Rg7 $19) 29... Rh7) 29. Bxe8+ $18 {[%emt 0:00:14][%cal Bg6e8,Be8d7,Bd7e6][%mdl 32]} Kh8 {[%emt 0:00:06]} 30. Bd7 {[%emt 0:00:41]} Qc7 {[%emt 0:00:46]} 31. Be6 {[%emt 0:00:37][%csl Ge6][%cal Rg4g8]} Bg7 {[%emt 0:00:14]} 32. Qe2 {[%emt 0:00:28]} Qc3 {[%emt 0:00:20]} 33. f5 {[%emt 0:00:35]} Qxa3 {[%emt 0:00:07]} 34. Qd2 {[%emt 0:00:31]} Bf8 $2 {[%emt 0:01:41]} (34... h6 35. Qxd6 Qc3 36. Qxa6 Qxb4) 35. Qd4 $2 {[%emt 0:00:18]} ({Not} 35. Qg5 Bg7 $18) (35. Bb3 Bg7 36. g4) 35... Kg7 $2 {[%emt 0:00:17]} (35... Bg7 $18) 36. Ra1 {[%emt 0:00:20] Weighted Error Value: White=1.09/Black=1.45} (36. Qg4+ $142 Kh6 37. Qh4+ Kg7 38. Qg5+ Rg6 39. fxg6 Qa1 40. gxh7+ Kxh7 41. Bf5+ Kh8 42. Qh5+ Kg7 43. Qg6+ Kh8 44. Qh7#) 1-0

[Event "Doeberl Cup 2022"]
[Site "Canberra"]
[Date "2022.04.16"]
[Round "5.5"]
[White "Lane, Gary W"]
[Black "Press, Harry"]
[Result "1-0"]
[ECO "C91"]
[WhiteElo "2332"]
[BlackElo "2114"]
[Annotator "TA"]
[PlyCount "89"]
[EventDate "2022.04.14"]
[EventType "swiss"]
[EventCountry "AUS"]
[SourceTitle "playchess.com"]
[Source "ChessBase"]
[SourceQuality "1"]
[TimeControl "5400+30"]

{[%evp 26,89,0,6,14,15,33,45,52,54,77,31,46,46,46,49,51,31,41,41,52,44,62,30,89,86,90,71,101,106,104,99,87,58,107,106,106,112,114,97,123,111,114,111,143,122,202,236,286,191,193,187,444,249,702,602,1034,938,870,843,4766,3467,29983,29984,29989,29990]} 1. e4 {[%emt 0:00:04]} e5 {[%emt 0:00:24]} 2. Nf3 {[%emt 0:00:08]} Nc6 {[%emt 0:00:14]} 3. Bb5 {[%emt 0:00:47]} a6 {[%emt 0:00:20]} 4. Ba4 {[%emt 0:00:05]} Nf6 {[%emt 0:00:20]} 5. O-O {[%emt 0:00:05]} Be7 {[%emt 0:00:32]} 6. Re1 {[%emt 0:00:07]} b5 {[%emt 0:00:08]} 7. Bb3 {[%emt 0:00:05]} O-O {[%emt 0:00:18]} 8. d4 {[%emt 0:02:53]} d6 {[%emt 0:05:59]} 9. c3 {[%emt 0:00:13]} Bg4 {[%emt 0:00:21]} 10. d5 {[%emt 0:01:06]} Na5 {[%emt 0:03:52]} 11. Bc2 {[%emt 0:00:55]} c6 {[%emt 0:00:27]} 12. h3 {[%emt 0:01:47]} Bh5 {[%emt 0:08:26]} 13. dxc6 {[%emt 0:12:31]} Nxc6 {[%emt 0:00:26]} 14. Nbd2 $1 {[%emt 0:00:06][%cal Bb1d2,Bd2f1,Bf1e3][%mdl 32] 14.Nbd2 scores better than 14.Bg5.} Qc7 {[%emt 0:01:56] C91: Closed Ruy Lopez: 7...d6 8 c3 0-0 9 d4.} 15. Nf1 {[%emt 0:02:22]} Rfd8 {[%emt 0:03:26]} 16. Ne3 {[%emt 0:05:20] [#]} Bg6 $146 {[%emt 0:10:19] White is slightly better.} ({Predecessor:} 16... Qd7 17. a4 b4 18. Nd5 Rab8 19. a5 Nxd5 20. exd5 Na7 21. Nxe5 Bxd1 22. Nxd7 Rxd7 23. Bxd1 bxc3 24. bxc3 {½-½ (52) Kinnmark,O-Berglund,M Stockholm 1967}) 17. Nh4 {[%emt 0:01:32]} Bf8 {[%emt 0:06:47][%cal Od6d5]} (17... Bxe4 $2 18. Bxe4 d5 19. Bc2 $18 (19. Nxd5 Nxd5 20. Bxd5 Bxh4 $16)) 18. Nhf5 {[%emt 0:10:12]} (18. Qf3 $16) 18... Bxf5 {[%emt 0:10:25]} 19. Nxf5 {[%emt 0:00:30]} Ne7 $1 {[%emt 0:09:28]} 20. Qf3 {[%emt 0:02:32][%cal Of5h6]} Nxf5 {[%emt 0:05:05]} 21. Qxf5 {[%emt 0:00:14]} b4 {[%emt 0:03:20]} 22. Re3 {[%emt 0:11:43]} bxc3 {[%emt 0:08:07]} 23. Rxc3 {[%emt 0:00:06]} Qb7 {[%emt 0:00:28]} 24. Rg3 {[%emt 0:08:26] [#] aiming for Qxf6.} (24. Rb1 $5 {[%cal Rc1g5]}) 24... Ne8 {[%emt 0:05:02]} (24... Rdc8 $11 {keeps the balance.}) 25. Bb3 $16 {[%emt 0:00:43]} Qd7 {[%emt 0:00:20]} 26. Qh5 $36 {[%emt 0:09:17][%mdl 2048] Strongly threatening Bg5. Black is under strong pressure. &Bianco is much more active. The black rooks are badly placed.} g6 {[%emt 0:03:28]} 27. Qe2 {[%emt 0:00:16]} Nc7 {[%emt 0:00:50]} 28. Be3 {[%emt 0:03:25]} Ne6 {[%emt 0:02:33]} 29. h4 {[%emt 0:10:21]} Bg7 {[%emt 0:01:43]} (29... Nf4 $1 $14 30. Bxf4 exf4) 30. h5 {[%emt 0:04:18]} a5 {[%emt 0:02:21]} 31. hxg6 {[%emt 0:01:06]} hxg6 {[%emt 0:00:07]} 32. Rc1 {[%emt 0:02:20]} Rab8 {[%emt 0:00:46]} 33. Bd5 {[%emt 0:02:27]} Rdc8 {[%emt 0:03:03]} 34. Rxc8+ {[%emt 0:00:33]} Qxc8 {[%emt 0:02:37]} 35. b3 {[%emt 0:00:18][%cal Bb2b3,Bb3a4,Ba4a5,Ba5a6,Ba6a7][%mdl 32]} Kf8 {[%emt 0:01:02]} (35... Nc7 $16 {was worth a try.}) 36. Qd2 $18 {[%emt 0:01:50]} a4 {[%emt 0:01:20]} 37. bxa4 {[%emt 0:00:05]} Rb1+ {[%emt 0:00:38]} 38. Kh2 {[%emt 0:00:01] Bxe6 is the strong threat.} Bf6 $2 {[%emt 0:01:17]} (38... Nf4 39. a5 (39. Bxf4 exf4 40. Qxf4 Qc7 $16) 39... Bf6 40. Bxf4 exf4 41. Qxf4 (41. Rb3 Rf1 $15) 41... Ke7) 39. Rh3 {[%emt 0:01:29]} (39. Bxe6 $142 Qxe6 40. a5) 39... Ke7 {[%emt 0:00:29]} (39... Nf4) 40. a5 {[%emt 0:01:02][%cal Oa5a6] [#] Hoping for a6!} Bg7 {[%emt 0:01:01]} 41. Bxe6 {[%emt 0:01:45]} Qxe6 {[%emt 0:00:01]} 42. a6 {[%emt 0:00:16]} Ra1 {[%emt 0:00:31]} 43. a3 {[%emt 0:00:45] And now Qa5 would win.} Qc4 {[%emt 0:00:52]} 44. a7 {[%emt 0:00:41]} Rxa3 {[%emt 0:00:17]} 45. Bg5+ {[%emt 0:00:15] Weighted Error Value: White=0.19 (very precise) /Black=0.46} 1-0

[Event "Doeberl Cup 2022"]
[Site "Canberra"]
[Date "2022.04.16"]
[Round "5.6"]
[White "Banerjee, Niki"]
[Black "Wallis, Christopher"]
[Result "0-1"]
[ECO "E46"]
[WhiteElo "2043"]
[BlackElo "2337"]
[Annotator "TA"]
[PlyCount "62"]
[EventDate "2022.04.14"]
[EventType "swiss"]
[EventCountry "AUS"]
[SourceTitle "playchess.com"]
[Source "ChessBase"]
[SourceQuality "1"]
[TimeControl "5400+30"]

{[%evp 13,62,0,1,0,7,0,0,0,0,8,18,0,-5,-43,-48,-54,-8,-99,-90,-84,-65,-175,-181,-194,-158,-224,-218,-212,-202,-204,-186,-193,-188,-197,-187,-173,-184,-460,-451,-492,-483,-491,-468,-444,-446,-435,-414,-1324,-445,-1595,-1487]} 1. d4 {[%emt 0:00:04]} Nf6 {[%emt 0:16:15]} 2. c4 {[%emt 0:00:08]} e6 {[%emt 1:15:15]} 3. Nc3 {[%emt 0:00:41]} Bb4 {[%emt 0:00:00]} 4. e3 {[%emt 0:00:33]} O-O {[%emt 0:00:00]} 5. Nge2 {[%emt 0:00:08]} Re8 {[%emt 0:00:00]} 6. a3 {[%emt 0:00:14]} Bf8 {[%emt 0:00:00]} 7. Ng3 {[%emt 0:00:23]} d5 {[%emt 0:00:00]} 8. Be2 {[%emt 0:01:01] E46: Nimzo-Indian: Rubinstein: 4 e3 0-0 5 Ne2 without early Bd3.} b6 {[%emt 0:00:00]} 9. O-O {[%emt 0:00:24] 9.0-0 is better than 9.cxd5.} c5 {[%emt 0:00:00]} 10. dxc5 {[%emt 0:01:17] The position is equal.} bxc5 {[%emt 0:00:00]} 11. cxd5 {[%emt 0:00:18]} exd5 {[%emt 0:00:00][%cal Be6d5,Bd5d4][%mdl 32]} 12. Bf3 {[%emt 0:00:53][%cal Rc3d5]} Be6 {[%emt 0:00:00] [#]} 13. b3 $146 {[%emt 1:30:56]} ({Predecessor:} 13. Nge2 Na6 14. Nf4 Nc7 15. Qa4 Bd6 16. Rd1 Bxf4 17. Qxf4 Rb8 18. b4 Qe7 19. bxc5 Qxc5 {1-0 (42) Carow,J (2429)-Suvorov,L (2130) Neustadt an der Weinstrasse 2018}) 13... Nc6 {[%emt 0:05:30]} 14. Bb2 {[%emt 0:00:30]} Rc8 {[%emt 0:00:30]} (14... Ne5 $15 15. Be2 Rb8) 15. Na4 {[%emt 0:00:00] [#]} (15. Nce2 $11) 15... d4 $1 $17 {[%emt 0:00:00] Black converts the advantage convincingly.} 16. Bxc6 {[%emt 0:00:00]} Rxc6 {[%emt 0:00:00]} 17. Qd3 {[%emt 0:00:00]} ({White should try} 17. exd4 $15 cxd4 18. Qd3) 17... Qd7 {[%emt 0:00:00]} 18. exd4 {[%emt 0:00:00]} c4 {[%emt 0:00:00][%mdl 64] Deflection} 19. Qd2 {[%emt 0:00:00]} (19. Qd1 $17 {might work better.}) 19... cxb3 $19 20. Nc3 {[%emt 0:00:00]} Rec8 21. Rac1 {[%emt 0:00:00]} h6 22. Rfd1 {[%emt 0:00:00]} Nd5 {[%emt 0:00:00][%cal Of8a3] Threatens to win with ...Bxa3!} 23. Nge4 {[%emt 0:00:00]} Nxc3 24. Rxc3 Rxc3 {[%emt 0:05:00]} 25. Bxc3 {[%emt 0:05:30]} (25. Nxc3 Bf5 26. Re1) 25... Bd5 {[%emt 0:00:30]} 26. Nc5 {[%emt 0:00:00]} Qg4 {[%emt 0:00:30][%csl Gd5][%cal Rg4g2]} 27. f3 {[%emt 0:00:00]} Bxf3 {A strong pair of Bishops.} 28. Re1 {[%emt 0:00:00]} Bd5 {...Bd6 is the strong threat.} 29. Re5 {[%emt 0:02:00]} Rd8 {[%emt 0:00:00]} 30. Ba5 {[%emt 0:00:00] [#]} (30. Bb2 $142) 30... Rb8 (30... Bxg2 $142 $1 {[%mdl 512]} 31. Bxd8 Bh3+ 32. Kf2 Qg2+ 33. Ke3 b2 34. Qxg2 Bxg2) 31. Bb4 {[%emt 0:00:00] [#]} ({Don't go for} 31. Rxd5 $2 b2 32. Re5 b1=Q+) (31. Bc3 $142 Bc6 32. h3) 31... Bxg2 $1 {[%emt 0:00:00][%mdl 512] Weighted Error Value: White=0.73/Black=0.29 (precise)} 0-1

[Event "Doeberl Cup 2022"]
[Site "Canberra"]
[Date "2022.04.16"]
[Round "5.7"]
[White "Puccini, Jack"]
[Black "Chan, Wei Xuan Timothy"]
[Result "1-0"]
[ECO "B33"]
[WhiteElo "2313"]
[BlackElo "2393"]
[Annotator "TA"]
[PlyCount "59"]
[EventDate "2022.04.14"]
[EventType "swiss"]
[EventCountry "AUS"]
[SourceTitle "playchess.com"]
[Source "ChessBase"]
[SourceQuality "1"]
[TimeControl "5400+30"]

{[%evp 24,59,57,37,108,118,116,104,108,106,137,134,120,133,131,138,180,189,237,243,278,275,341,322,359,340,398,393,943,936,928,918,849,821,917,912,893,870]} 1. e4 {[%emt 1:31:00]} c5 {[%emt 1:31:00]} 2. Nf3 {[%emt 0:00:30][%cal Bg1f3,Bf3d4,Bd4b5][%mdl 32]} Nc6 {[%emt 0:00:30]} 3. d4 {[%emt 0:00:30]} cxd4 {[%emt 0:00:30]} 4. Nxd4 {[%emt 0:00:30]} Nf6 {[%emt 0:00:30]} 5. Nc3 {[%emt 0:00:30]} e5 {[%emt 0:00:30]} 6. Ndb5 {[%emt 0:00:30]} d6 {[%emt 0:00:30]} 7. Bg5 {[%emt 0:00:30]} a6 {[%emt 0:00:30]} 8. Na3 {[%emt 0:00:30]} b5 {[%emt 0:00:30]} 9. Bxf6 {[%emt 0:00:30]} gxf6 {[%emt 0:00:30]} 10. Nd5 {[%emt 0:00:30]} Bg7 {[%emt 0:00:30]} 11. Bd3 {[%emt 0:00:30]} Ne7 {[%emt 0:00:30]} 12. Nxe7 {[%emt 0:00:30]} Qxe7 {[%emt 0:00:30]} 13. O-O {[%emt 0:00:30]} Bb7 {[%emt 0:00:30] [#] B33: Sicilian: Pelikan and Sveshnikov Variations.} (13... d5 $14) 14. Qh5 $146 {[%emt 0:00:30]} ({Predecessor:} 14. c4 O-O 15. Qf3 bxc4 16. Nxc4 Kh8 17. Ne3 Rg8 18. Rad1 Bh6 19. Nf5 Qf8 20. Bc4 Rd8 21. Rd3 Rg5 22. Rfd1 Bc8 23. Nxd6 Rxd6 24. Rxd6 Bg4 25. Qxf6+ Kg8 26. Rd8 {1-0 (26) Corrales Jimenez,F (2532)-Nygren,K (2232) Chess.com INT 2020}) 14... f5 {[%emt 0:00:30]} 15. Qxf5 {[%emt 0:00:30]} Qe6 {[%emt 0:00:30] White is better.} 16. Qh5 {[%emt 0:00:30]} Qg6 {[%emt 0:00:30]} 17. Qe2 {[%emt 0:00:30][%cal Od3b5]} O-O {[%emt 0:00:30]} 18. c4 {[%emt 0:00:30] Inhibits d5.} f5 {[%emt 0:00:30][%cal Rf5e4]} 19. f3 d5 {[%emt 0:00:30]} 20. cxd5 {[%emt 0:01:00]} ({Don't do} 20. exd5 Kh8 21. Rad1 bxc4) 20... Bh6 {[%emt 0:00:30]} (20... f4 {was necessary.} 21. Nb1 Qb6+ 22. Kh1 Bc8) 21. Nc2 $18 {[%emt 0:00:30]} Kh8 {[%emt 0:00:30]} 22. exf5 {[%emt 0:00:30]} Qf6 {[%emt 0:00:30]} 23. Be4 {[%emt 0:00:30]} Rg8 {[%emt 0:00:30]} 24. Kh1 {[%emt 0:00:30]} Bf4 {[%emt 0:00:30]} 25. g3 {[%emt 0:00:30]} Rxg3 {[%emt 0:00:30]} (25... Bg5 26. Nb4 Rad8) 26. hxg3 {[%emt 0:00:30] White is clearly winning.} Bxg3 {[%emt 0:00:30]} 27. Kg2 {[%emt 0:00:30][%cal Bh1g2,Bg2f1,Bf1g1][%mdl 32]} (27. d6 {gets mated.} Qh4+ 28. Kg1 Rg8 $1 29. Qg2 Bh2+ 30. Kh1 Bf4+ 31. Kg1 Rxg2+ 32. Kxg2 Qh2#) 27... Bf4 {[%emt 0:00:30]} 28. Rg1 {[%emt 0:00:30]} Rg8+ {[%emt 0:00:30] [#]} 29. Kf1 $1 {[%emt 0:00:30]} Rxg1+ {[%emt 0:00:30]} 30. Kxg1 {[%emt 0:00:30] White took control after the opening.  Weighted Error Value: White=0.04 (flawless) /Black=0.34} 1-0

[Event "Doeberl Cup 2022"]
[Site "Canberra"]
[Date "2022.04.16"]
[Round "6.1"]
[White "Wallis, Christopher"]
[Black "Fernandez, Daniel Howard"]
[Result "1/2-1/2"]
[ECO "D11"]
[WhiteElo "2337"]
[BlackElo "2487"]
[Annotator "TA"]
[PlyCount "92"]
[EventDate "2022.04.14"]
[EventType "swiss"]
[EventCountry "AUS"]
[SourceTitle "playchess.com"]
[Source "ChessBase"]
[SourceQuality "1"]
[TimeControl "5400+30"]

{[%evp 13,92,12,33,11,16,8,12,14,18,7,40,22,65,35,97,0,0,0,0,0,36,0,0,-20,0,-6,-6,-13,-8,-13,0,-6,0,-11,8,-13,-13,-13,-3,-3,15,-7,-7,-12,-6,-6,-6,-6,-7,-17,-18,-67,-66,-53,-15,-8,-8,-52,0,0,0,0,0,-8,-8,-8,-8,-8,-8,-8,-8,-8,-8,-8,0,-8,-8,-8,0,0,0]} 1. d4 {[%emt 0:00:04]} d5 {[%emt 0:07:55]} 2. c4 {[%emt 0:01:01]} c6 {[%emt 0:00:03]} 3. Nf3 {[%emt 0:00:56]} Nf6 {[%emt 0:00:04]} 4. e3 {[%emt 0:00:49]} Bg4 {[%emt 0:00:48]} 5. h3 {[%emt 0:04:14]} Bxf3 {[%emt 0:00:48]} 6. Qxf3 {[%emt 0:00:09]} e6 {[%emt 0:00:04]} 7. Nc3 {[%emt 0:00:21]} Nbd7 {[%emt 0:02:06]} 8. Bd2 {[%emt 0:01:37] D11: Slav Defence: 3 Nf3 sidelines and 3...Nf6 4 e3 Bg4.} Bb4 {[%emt 0:03:35] The main line 8...Bb4 scores better than 8...Bd6.} 9. a3 {[%emt 0:04:11]} Bxc3 {[%emt 0:00:16]} 10. Bxc3 {[%emt 0:00:09]} Ne4 {[%emt 0:00:07]} 11. Rc1 {[%emt 0:05:36] [#]} Qf6 $146 {[%emt 0:01:44]} ({Predecessor:} 11... Nxc3 12. Rxc3 Nf6 13. Bd3 dxc4 14. Bxc4 Nd5 15. Rc2 Qa5+ 16. Ke2 Rd8 17. Rhc1 Qa4 {1-0 (72) Vega Gutierrez,S (2375)-Nikolova,A (2331) Mamaia 2016}) 12. Qxf6 {[%emt 0:02:52]} gxf6 {[%emt 0:01:10]} 13. Bd3 {[%emt 0:05:24]} h5 {[%emt 0:03:23]} (13... Nxc3 $14 14. Rxc3 dxc4 15. Rxc4 Ke7) 14. O-O {[%emt 0:02:03]} (14. cxd5 $16 exd5 15. Bxe4 dxe4 16. O-O) 14... Nxc3 $11 {[%emt 0:00:33]} 15. Rxc3 {[%emt 0:00:12]} dxc4 $1 {[%emt 0:01:12]} 16. Bxc4 {[%emt 0:00:38]} Nb6 {[%emt 0:00:18]} 17. Rfc1 {[%emt 0:08:52]} h4 {[%emt 0:00:43]} 18. Be2 {[%emt 0:02:40]} Kd7 {[%emt 0:01:46]} 19. Bf3 {[%emt 0:02:52]} f5 {[%emt 0:01:34]} 20. Kf1 {[%emt 0:05:30]} Rhg8 {[%emt 0:00:21]} 21. Ke2 {[%emt 0:06:58]} a5 {[%emt 0:01:26]} 22. b3 {[%emt 0:05:33]} Ra6 {[%emt 0:00:33]} 23. R1c2 {[%emt 0:05:27]} Nc8 {[%emt 0:01:08]} 24. Rc5 {[%emt 0:05:01]} (24. d5 $5 exd5 25. Bxd5 $11) 24... Nd6 {[%emt 0:01:11]} 25. Kd3 {[%emt 0:03:25]} Rb6 {[%emt 0:00:57]} 26. Rb2 {[%emt 0:02:49]} Rb5 {[%emt 0:00:33]} 27. Rxb5 {[%emt 0:02:01]} (27. a4 {with more complications.} Rb4 28. Kc3 b6 29. Rxc6 Ne4+ 30. Bxe4 fxe4 31. Rc4) 27... Nxb5 {[%emt 0:00:17][%mdl 4096] Endgame KRB-KRN} 28. a4 {[%emt 0:23:06]} Nd6 {[%emt 0:03:47]} 29. Rc2 {[%emt 0:00:00]} Kc7 {[%emt 0:04:04]} 30. Rc5 {[%emt 0:00:00]} Kb6 {[%emt 0:00:03]} 31. Re5 {[%emt 0:00:00]} Re8 {[%emt 0:00:04]} 32. Kc3 {[%emt 0:00:00]} (32. Rc5 $11 {deserves consideration.}) 32... f6 $1 $15 {[%emt 0:00:40]} 33. Rc5 {[%emt 0:00:00]} Rg8 {[%emt 0:00:29][%cal Oe6e5]} 34. b4 $1 {[%emt 0:00:00]} Ne4+ {[%emt 0:00:18]} 35. Bxe4 {[%emt 0:00:00]} axb4+ {[%emt 0:00:03]} (35... fxe4 $15 36. Rxa5 (36. bxa5+ Ka6 $15) 36... Rxg2) 36. Kxb4 $11 {[%emt 0:00:00] The position is equal.} fxe4 {[%emt 0:00:03] KR-KR} 37. Rh5 {[%emt 0:00:00]} Rxg2 {[%emt 0:00:05]} 38. Rxh4 {[%emt 0:00:00]} f5 {[%emt 0:00:18]} 39. a5+ {[%emt 0:00:00]} Ka6 {[%emt 0:02:01]} 40. Rh8 {[%emt 0:00:00][%cal Rh8a8] [#]} Ka7 {[%emt 0:00:03] Inhibits Ra8+.} 41. Rh6 {[%emt 0:00:00]} Rxf2 {[%emt 0:00:31] Strongly threatening ...Rf3.} 42. Rxe6 {[%emt 0:00:00]} Rb2+ {[%emt 0:05:05]} 43. Kc4 {[%emt 0:00:00]} Re2 {[%emt 0:04:37]} 44. Re5 {[%emt 0:03:18]} Rxe3 {[%emt 0:00:16] [#] White must now prevent ...f4.} 45. Rxf5 {[%emt 0:00:11]} Ka6 {[%emt 0:00:44]} 46. h4 {[%emt 0:01:07]} Rh3 {[%emt 0:08:06] Weighted Error Value: White=0.10 (very precise) /Black=0.09 (flawless)} 1/2-1/2

[Event "Doeberl Cup 2022"]
[Site "Canberra"]
[Date "2022.04.16"]
[Round "6.2"]
[White "Melkumyan, Hrant"]
[Black "Lane, Gary W"]
[Result "1-0"]
[ECO "A85"]
[WhiteElo "2649"]
[BlackElo "2332"]
[Annotator "TA"]
[PlyCount "79"]
[EventDate "2022.04.14"]
[EventType "swiss"]
[EventCountry "AUS"]
[SourceTitle "playchess.com"]
[Source "ChessBase"]
[SourceQuality "1"]
[TimeControl "5400+30"]

{[%evp 12,79,41,13,40,11,16,19,12,4,41,34,31,18,23,0,37,12,68,61,83,74,112,51,81,40,83,64,137,76,98,94,93,107,113,101,118,122,143,139,151,143,165,173,268,259,231,227,377,349,370,368,359,380,365,354,382,391,421,399,531,548,558,558,1321,766,722,692,1194,595]} 1. c4 {[%emt 0:00:10]} f5 {[%emt 0:00:07]} 2. d4 {[%emt 0:01:18]} Nf6 {[%emt 0:00:05]} 3. Nf3 {[%emt 0:00:19]} g6 {[%emt 0:00:06]} 4. Nc3 {[%emt 0:00:53]} Bg7 {[%emt 0:00:07]} 5. Bf4 {[%emt 0:00:08]} d6 {[%emt 0:03:02]} 6. e3 {[%emt 0:03:02]} O-O {[%emt 0:01:06]} 7. Be2 {[%emt 0:00:14] 7.Be2 has lost popularity.} Nc6 {[%emt 0:02:05] A85: Dutch Defence: 2 c4 Nf6 3 Nc3.} 8. Qb3 $5 {[%emt 0:02:34][%mdl 4] Exploring less charted territory.} Ne4 {[%emt 0:07:09]} 9. Rd1 {[%emt 0:03:03]} Nxc3 {[%emt 0:08:33] The position is equal.} 10. bxc3 {[%emt 0:00:30]} Qe8 {[%emt 0:00:30]} 11. c5+ {[%emt 0:00:30]} Kh8 $1 {[%emt 0:00:30]} 12. cxd6 {[%emt 0:00:30]} cxd6 {[%emt 0:00:30]} 13. d5 {[%emt 0:00:30]} Ne5 {[%emt 0:00:30] [#]} (13... Na5 $5 {[%cal Ra5b3]} 14. Qb4 b6 $11) 14. Nd4 $146 {[%emt 0:00:30][%mdl 2048] White is pushing.} (14. Bxe5 $5 dxe5 15. O-O $11) ({Predecessor:} 14. Bxe5 dxe5 15. Ng5 Bf6 16. Bb5 Qd8 17. Ne6 Bxe6 18. dxe6 Qb6 19. Bd7 e4 20. Rc1 {½-½ (63) Martins,D (2372)-Galyas,M (2465) London 2015}) 14... a6 {[%emt 0:00:30]} (14... Bd7 $11) 15. c4 $14 {[%emt 0:00:30]} h6 {[%emt 0:00:30]} 16. h4 {[%emt 0:00:30][%cal Bh2h4,Bh4h5][%mdl 32] Against g5} Kh7 {[%emt 0:00:30]} 17. Rb1 {[%emt 0:00:30]} (17. O-O $16) 17... Bf6 {[%emt 0:00:30]} 18. Kf1 {[%emt 0:00:30]} Kg7 {[%emt 0:00:30]} 19. Qc2 {[%emt 0:00:30]} Qf7 {[%emt 0:00:30] [#]} ({Black should play} 19... b5 $14) 20. a4 {[%emt 0:00:30]} (20. Rb6 $142 $1) 20... Rb8 {[%emt 0:00:30]} 21. h5 {[%emt 0:00:30] 0x0.00018dd7ffe2dp-1022s more active pieces.} g5 {[%emt 0:00:30]} 22. Nxf5+ {[%emt 0:00:30]} Bxf5 {[%emt 0:00:30]} 23. Qxf5 {[%emt 0:00:30]} gxf4 {[%emt 0:00:30]} 24. exf4 {[%emt 0:00:30]} Qe8 {[%emt 0:00:30][%cal Of6g5]} 25. fxe5 {[%emt 0:00:30]} Bxe5 {[%emt 0:00:30]} 26. Qc2 {[%emt 0:00:30]} Bd4 {[%emt 0:00:30]} 27. Bf3 {[%emt 0:00:30]} b5 {[%emt 0:00:30]} (27... Rf4 $142 28. Rh3 Kh8) 28. Rh4 {[%emt 0:00:30]} Bf6 {[%emt 0:00:30]} 29. Rg4+ {[%emt 0:00:30]} Bg5 {[%emt 0:00:30]} (29... Kh8 $142 30. cxb5 axb5) 30. cxb5 $18 {[%emt 0:00:30]} axb5 {[%emt 0:00:30]} 31. Qb2+ {[%emt 0:00:30]} Kg8 {[%emt 0:00:30]} 32. axb5 {[%emt 0:00:30][%cal Ba4b5,Bb5b6,Bb6b7][%mdl 32]} Qxh5 {[%emt 0:00:30]} 33. Kg1 {[%emt 0:00:30]} Qe8 {[%emt 0:00:30]} 34. Qe2 {[%emt 0:00:30]} Kh8 {[%emt 0:00:30]} 35. b6 {[%emt 0:00:30]} Qc8 {[%emt 0:00:30]} 36. Be4 {[%emt 0:00:30][%cal Og4g5] [#] Hoping for Rxg5! White is clearly winning.} Rg8 {[%emt 0:00:30]} 37. Bd3 {[%emt 0:00:30]} Qc5 {[%emt 0:00:30]} 38. Qe4 {[%emt 0:00:30][%csl Gd3][%cal Re4h7]} Rg7 {[%emt 0:00:30] Prevents Qh7+.} 39. b7 {[%emt 0:00:30] Black must now prevent Qe6.} Qa7 {[%emt 0:00:30]} 40. Qe6 {[%emt 0:00:30] Weighted Error Value: White=0.14 (very precise) /Black=0.40} (40. Qf3 $142 Qa5 41. Rc4) 1-0